Cogmind - Beta 17.1 @@@ ROGUE MODE // 2026.09.08 @ 21:16:25 Player: TheSkyeDoctor Result: Destroyed by Y-45 Defender with Heavy Assault Rifle Performance ------------- Evolutions (2) 1000 Regions Visited (3) 600 Robots Destroyed (24) 120 Value Destroyed (575) 575 Prototype IDs (0) 0 Alien Tech Used (0) 0 Bonus (0) 0 TOTAL SCORE: 2295 Bonus ------- None Cogmind --------- Core Integrity 0/550 Matter 196/300 Energy 100/100 System Corruption 2% Temperature Cool (9) Movement Core (50) Location -8/Materials Parts ------- > --- POWER (1) -------- (None) > --- PROPULSION (4) --- (None) > --- UTILITY (2) ------ Machine Analyzer > --- WEAPON (4) ------- (None) > --- INVENTORY (5) ---- Improved Heat Sink Large Storage Unit Medium Matter Pod (0) Improved Terrain Scanner Reaction Control System Peak State ------------ > --- POWER ------------ (None) > --- PROPULSION ------- Aluminum Leg Aluminum Leg Titanium Leg > --- UTILITY ---------- Machine Analyzer Seismic Detector > --- WEAPON ----------- Particle Gun Particle Gun Spread Laser Flak Cannon > --- INVENTORY -------- Improved Heat Sink Large Storage Unit Medium Matter Pod Improved Terrain Scanner Reaction Control System [Rating: 19] Favorites ----------- Power Ion Engine Engine Ion Engine Propulsion Aluminum Leg Leg Aluminum Leg Utility Seismic Detector Device Seismic Detector Storage Small Storage Unit Processor Machine Analyzer Weapon Assault Rifle Energy Gun EM Pulse Gun Ballistic Gun Assault Rifle Ballistic Cannon Flak Cannon Slashing Weapon Katana Build | -11 -10 -10 -8 ------- Run | Yrd Mat Sub Mat Slots Evolved 4 | . . . 4 Power . | . . . . Propulsion 2 | . . . 2 Utility . | . . . . Weapon 2 | . . . 2 Parts Attached 23 | 7 1 2 13 Power 3 | 1 . 1 1 Engine 3 | 1 . 1 1 Core . | . . . . Reactor . | . . . . Propulsion 7 | 2 . . 5 Treads . | . . . . Leg 7 | 2 . . 5 Wheel . | . . . . Hover . | . . . . Flight . | . . . . Utility 4 | 2 1 1 . Device 1 | 1 . . . Storage 2 | 1 1 . . Processor 1 | . . 1 . Hackware . | . . . . Protection . | . . . . Artifact . | . . . . Weapon 9 | 2 . . 7 Energy Gun 6 | 1 . . 5 Energy Cannon . | . . . . Ballistic Gun 1 | 1 . . . Ballistic Cannon 1 | . . . 1 Launcher . | . . . . Special Weapon . | . . . . Impact Weapon . | . . . . Slashing Weapon 1 | . . . 1 Piercing Weapon . | . . . . Special Melee Weapon . | . . . . Unidentified Prototypes . | . . . . Parts Lost 18 | . . 6 12 Power 3 | . . 2 1 Propulsion 7 | . . 2 5 Utility 1 | . . . 1 Weapon 7 | . . 2 5 Highest Loss Streak 9 | . . 4 9 To Critical Strikes . | . . . . Average Backups 4 | . 4 5 4 Power . | . 1 1 . Propulsion . | . 1 2 . Utility 2 | . 1 2 4 Weapon . | . . . . Tool/Special . | . . . . Unused Backups 4 | . . . 4 Power . | . . . . Propulsion . | . . . . Utility 4 | . . . 4 Weapon . | . . . . Tool/Special . | . . . . Average Slot Usage (%) 70 | . 88 74 49 Engine 9 | . 14 12 2 Leg 24 | . 28 24 20 Device 11 | . 14 14 7 Storage 1 | . 3 . . Processor 3 | . . 2 9 Energy Gun 10 | . 14 9 7 Ballistic Gun 8 | . 14 10 . Peak Build Rating 19 | 7 7 6 19 Average Rating 7 | 5 6 5 11 On Entrance 4 | . 7 6 4 Avg Prop Armor Cover (%) 8 | . . . 8 Naked Turns . | . . . . Heaviest Build 30 | 15 30 10 13 Greatest Support 37 | 20 20 20 37 Greatest Overweight (x) 1 | 1 1 . 1 Average Overweight (x) . | . . . . Largest Inventory Capacity 15 | 8 15 5 5 Average Capacity 5 | 7 5 5 5 Most Carried 5 | 2 5 5 5 Average Carried 4 | . 4 5 4 Final Capacity 8 | 8 5 5 5 Final Carried 5 | 2 5 5 5 Class Distribution -------------------- 72% | Mutant 18% | Scavenger-Mutant 8% | Skirmisher Dominant Class ---------------- Mutant | -10/Materials Mutant | -10/Subcaves Scavenger-Mutant | -8/Materials Resources | -11 -10 -10 -8 ----------- Run | Yrd Mat Sub Mat Matter Collected 494 | 300 79 31 84 Remotely . | . . . . Salvage Created 656 | 160 214 20 262 Parts 48 | 18 14 3 13 Haulers Intercepted . | . . . . Recyclers Shooed . | . . . . Parts Field Recycled . | . . . . Retrieved Matter . | . . . . Parts Self-Destructed 4 | . . 4 . Prevented 2 | . . 2 . Parts Restored . | . . . . Kills | -11 -10 -10 -8 ------- Run | Yrd Mat Sub Mat Combat Hostiles Destroyed 16 | . 5 1 10 Melee 1 | . . . 1 Guns 10 | . 3 1 6 Cannons 3 | . . . 3 AOE 2 | . 2 . . Classes Destroyed 9 | 2 4 . 3 Builder 1 | . 1 . . Tunneler 5 | 5 . . . Recycler 1 | 1 . . . Watcher 1 | . 1 . . Swarmer 5 | . 2 1 2 Grunt 7 | . 3 . 4 Brawler 1 | . . . 1 Duelist 1 | . . . 1 Sentry 2 | . . . 2 Best Kill Streak 6 | 4 3 1 6 Combat Bots Only 6 | . 2 1 6 Max Kills in Single Turn 1 | 1 1 1 1 Gunslinging . | . . . . Exploded 1 | . 1 . . Melee 1 | . . . 1 Uniques/NPCs Destroyed . | . . . . Combat | -11 -10 -10 -8 -------- Run | Yrd Mat Sub Mat Hostile Shots Fired 229 | . 27 38 164 Missed 81 | . 13 14 54 Hits 148 | . 14 24 110 Melee 5 | . . . 5 Projectile 143 | . 14 24 105 Critical Strikes 5 | . . . 5 Damage Taken 2153 | . 119 488 1546 Core 712 | . . 159 553 Absorbed by Shields . | . . . . Core Remaining (%) 68 | 100 . 36 . Volleys Fired 86 | 10 23 18 35 Largest 2 | 2 2 2 2 Hottest 130 | 60 60 60 130 Shots Fired 128 | 20 46 26 36 Gun 110 | 20 46 26 18 Cannon 18 | . . . 18 Launcher . | . . . . Special . | . . . . Kinetic 69 | 10 23 18 18 Thermal 18 | . . . 18 Explosive . | . . . . Electromagnetic 41 | 10 23 8 . Robot Hit Streak 16 | 13 5 14 16 Robot Miss Streak 10 | 2 4 1 10 Penetration Max . | . . . . Secondary Targets 1 | . 1 . . Max Gunslinging Chain 1 | . 1 . . Shots Hit Robots 100 | 14 23 22 41 Core Hits 69 | 7 8 2 52 Critical Kills . | . . . . Critical Parts Destroyed . | . . . . Critical Strikes 2 | . 1 . 1 Corrupt 1 | . 1 . . Sever 1 | . . . 1 Melee Attacks 6 | . . . 6 Impact . | . . . . Slashing 6 | . . . 6 Piercing . | . . . . Sneak Attacks . | . . . . Combat Hostiles . | . . . . Follow-up Attacks . | . . . . Damage Inflicted 1764 | 190 383 272 919 Guns 1102 | 190 317 272 323 Cannons 399 | . . . 399 Explosions 66 | . 66 . . Melee 191 | . . . 191 Ramming 6 | . . . 6 Kinetic 809 | 80 134 196 399 Thermal 389 | . 66 . 323 Explosive . | . . . . Electromagnetic 369 | 110 183 76 . Impact . | . . . . Slashing 191 | . . . 191 Piercing . | . . . . Highest Corruption 2 | . . . 2 Average Corruption 2 | . . . 2 Corruption Purged . | . . . . Corruption Blocked . | . . . . Effects 1 | . . . 1 Energy Discharges 1 | . . . 1 Overload Shots . | . . . . Overflow Damage 17 | . . . 17 Projectiles . | . . . . Explosions . | . . . . Melee 17 | . . . 17 Knockbacks 8 | . . . 8 Impact . | . . . . Kinetic 7 | . . . 7 Secondary 1 | . . . 1 Self-Inflicted Damage . | . . . . Shots . | . . . . Rammed . | . . . . Targets Rammed 1 | . . . 1 Kicked 1 | . . . 1 Crushed . | . . . . Highest Temperature 99 | . 12 . 99 Average Temperature 18 | . 9 . 22 Received Heat Transfer 792 | . 24 129 639 Siege Activations . | . . . . Martial Activations . | . . . . Shielding Activations . | . . . . Robots Disrupted . | . . . . Combat Hostiles . | . . . . Robots Corrupted . | . . . . Combat Hostiles . | . . . . Parts Fried 2 | 2 . . . Impact Corruptions . | . . . . Robots Melted . | . . . . Combat Hostiles . | . . . . Parts Melted . | . . . . Heat Transferred 440 | . 50 . 390 Parts Sabotaged . | . . . . Parts Stolen . | . . . . Parts Stripped . | . . . . Power Chain Reactions 2 | . 2 . . Alert | -11 -10 -10 -8 ------- Run | Yrd Mat Sub Mat Maximum Alert Level . | . . . . Low Security (%) 100 | 100 100 . 100 Level 1 . | . . . . Level 2 . | . . . . Level 3 . | . . . . Level 4 . | . . . . Level 5 . | . . . . High Security . | . . . . Max Security . | . . . . Peak Influence 123 | 10 123 . 120 Initial . | . . . . Average 36 | 1 54 . 30 Influence Increases 596 | 30 193 65 308 Destroy 0b10 Robot/C 320 | . 100 20 200 Destroy 0b10 Robot/NC 40 | 30 10 . . Destroy Leader 82 | . 32 . 50 Successful Hack 13 | . . . 13 Destroy Structure 6 | . 6 . . Partial Spotted 15 | . 15 . . Lose Combat Pursuer 120 | . 30 45 45 Influence Decreases 526 | 30 148 110 238 Entered New Map 22 | . . 22 . Time Decay 356 | 30 148 60 118 Lost Part 148 | . . 28 120 Squads Dispatched 7 | . 2 . 5 Investigation 1 | . 1 . . Extermination . | . . . . Reinforcement 3 | . 1 . 2 Assault . | . . . . Garrison 3 | . . . 3 Intercept . | . . . . Searches Triggered . | . . . . Construction Impeded . | . . . . Haulers Reinforced . | . . . . Active Scanning Responses . | . . . . Cargo Convoy Interrupts . | . . . . Stealth | -11 -10 -10 -8 --------- Run | Yrd Mat Sub Mat Distress Signals 2 | . 1 . 1 Communications Jammed . | . . . . Distress Signals . | . . . . Times Spotted 41 | . 9 5 27 Peak Tracking Total 12 | . 4 3 12 Tactical Retreats 6 | . 2 2 2 Traps | -11 -10 -10 -8 ------- Run | Yrd Mat Sub Mat Traps Triggered . | . . . . Indirectly . | . . . . Trap Hack Attempts . | . . . . Triggered . | . . . . Disarmed . | . . . . Reprogrammed . | . . . . Reused . | . . . . Traps Extracted . | . . . . Installed . | . . . . Triggered . | . . . . Machines | -11 -10 -10 -8 ---------- Run | Yrd Mat Sub Mat Machines Disabled . | . . . . Max in Single Turn . | . . . . Machines Repaired . | . . . . Machines Dismantled . | . . . . Machines Sabotaged . | . . . . Overloaded Fab Kills . | . . . . Hacking | -11 -10 -10 -8 --------- Run | Yrd Mat Sub Mat Machines Accessed 1 | . . . 1 Terminals 1 | . . . 1 Fabricators . | . . . . Repair Stations . | . . . . Recycling Units . | . . . . Scanalyzers . | . . . . Garrison Access . | . . . . Total Hacks 4 | . . . 4 Successful 2 | . . . 2 Failed 2 | . . . 2 Catastrophic . | . . . . Database Lockouts . | . . . . Manual 4 | . . . 4 Terminals 4 | . . . 4 Fabricators . | . . . . Repair Stations . | . . . . Recycling Units . | . . . . Scanalyzers . | . . . . Garrison Access . | . . . . Terminal Hacks 1 | . . . 1 Branch Access Points 1 | . . . 1 Fabricator Hacks . | . . . . Repair Station Hacks . | . . . . Recycling Unit Hacks . | . . . . Scanalyzer . | . . . . Garrison Access Hacks . | . . . . Unauthorized Hacks 1 | . . . 1 Terminals 1 | . . . 1 Botnet 1 | . . . 1 Fabricators . | . . . . Repair Stations . | . . . . Recycling Units . | . . . . Scanalyzers . | . . . . Garrison Access . | . . . . Data Cores Recovered . | . . . . Used . | . . . . Hacking Detections 1 | . . . 1 Full Trace Events . | . . . . Feedback Events . | . . . . Feedback Blocked . | . . . . Robot Schematics Acquired . | . . . . Robots Built . | . . . . Authchips . | . . . . Time . | . . . . Total Robot Build Rating . | . . . . Part Schematics Acquired . | . . . . Parts Built . | . . . . Authchips . | . . . . Time . | . . . . Total Part Build Rating . | . . . . Part Studies Acquired . | . . . . Parts Repaired . | . . . . Time . | . . . . Parts Recycled . | . . . . Recycled Matter . | . . . . Retrieved Matter . | . . . . Retrieved Components . | . . . . Parts Scanalyzed . | . . . . Part Schematics Acquired . | . . . . Parts Damaged . | . . . . Bothacking | -11 -10 -10 -8 ------------ Run | Yrd Mat Sub Mat Used RIF Installer . | . . . . Robots Hacked . | . . . . Non-combat . | . . . . Combat . | . . . . Robot Hacks Applied . | . . . . Relay Couplers Released . | . . . . Fabnet Peak Effective % . | . . . . Robots Rewired . | . . . . Allies Hacked . | . . . . Hacks Repelled . | . . . . Allies | -11 -10 -10 -8 -------- Run | Yrd Mat Sub Mat Total Allies . | . . . . Largest Group . | . . . . Highest-Rated Group . | . . . . Highest-Rated Ally . | . . . . Total Orders . | . . . . Ally Attacks . | . . . . Total Damage . | . . . . Kills . | . . . . Allies Corrupted . | . . . . Allies Melted . | . . . . Intel | -11 -10 -10 -8 ------- Run | Yrd Mat Sub Mat Active Infowar (turns) 992 | 60 403 170 359 Seismic 850 | 60 403 170 217 Machine Analysis 393 | . . 34 359 Robot Analysis Total . | . . . . Derelict Logs Recovered . | . . . . Drone Launches . | . . . . Drone Recoveries . | . . . . Exploration | -11 -10 -10 -8 ------------- Run | Yrd Mat Sub Mat Turns Passed 1064 | 132 403 170 359 Spaces Moved 626 | 81 272 99 174 Core 57 | 14 . 10 33 Treads . | . . . . Legs 569 | 67 272 89 141 Wheels . | . . . . Hover . | . . . . Flight . | . . . . Fastest Speed 50 | 50 120 50 50 Average Speed 115 | 109 120 112 110 Slowest Speed 190 | 120 190 120 125 Overloaded Moves . | . . . . Propulsion Burnouts . | . . . . Robots Hopped . | . . . . Potential Cave-ins . | . . . . Cave-ins Triggered . | . . . . Exploration Rate (%) 20 | 4 47 9 21 Regions Visited 3 Branch Regions 1 Pre-discovered Areas . | . . . . Known Exits Taken . | . . . . Unknown Exits Taken 3 | 1 1 1 . Scrap Searched . | . . . . Spaces Dug . | . . . . Terrain Destroyed 6 | . 6 . . Melee . | . . . . Projectile . | . . . . AOE 6 | . 6 . . Terrain Rammed . | . . . . Walls Destroyed . | . . . . Machines Disabled . | . . . . Actions | -11 -10 -10 -8 --------- Run | Yrd Mat Sub Mat Total 821 | 101 301 129 290 Wait 69 | . 2 11 56 Move 623 | 80 271 98 174 Hop . | . . . . Pick Up 8 | 3 2 . 3 Fast Attach 19 | 7 . 2 10 Attach 3 | . . . 3 Detach 1 | . 1 . . Swap 1 | . 1 . . Drop 4 | 1 1 . 2 Fire 86 | 10 23 18 35 Melee 6 | . . . 6 Ram . | . . . . Kick 1 | . . . 1 Crush . | . . . . Escape Stasis . | . . . . Rewire . | . . . . Trap . | . . . . Miscellaneous . | . . . . Route ------- -11/Scrapyard -10/Materials (discovered 3 exits: [*Mat] / [*Min] / [*Sub]) -10/Subcaves -8/Materials History --------- Turn | Location | Event 21 | -11/Scrapyard | Discovered new exit (range 16) 133 | -11/Scrapyard | Entered Materials 134 | -10/Materials | Met a group of wandering Federalists 259 | -10/Materials | Lost 5 allies 260 | -10/Materials | Discovered new exit (range 7) 309 | -10/Materials | Build established: Mutant 525 | -10/Materials | Discovered new exit (range 8) 527 | -10/Materials | Discovered new exit (range 15) 536 | -10/Materials | Entered Subcaves 537 | -10/Subcaves | Approached by a straggling Scientist 668 | -10/Subcaves | Core integrity fell below 50% 696 | -10/Subcaves | Lost 4 parts (1p1n2w) 700 | -10/Subcaves | Discovered new exit (range 8) 706 | -10/Subcaves | Entered Materials 706 | -8/Materials | Evolved 4 slots: Propulsion x2, Weapon x2 847 | -8/Materials | Garrison activated, responded to threat 996 | -8/Materials | Core integrity fell below 50% 1052 | -8/Materials | Core integrity fell below 20% 1065 | -8/Materials | Destroyed by Y-45 Defender with Heavy Assault Rifle Last Messages --------------- 01008_ System corrupted: Energy discharge (-8). 01011_ Critical hit (Burn: +37). 01015_ B-36 Bruiser destroyed. 01020_ Titanium Leg destroyed. 01020_ C-30 ARC bursts open, deploying its payload. 01020_ G-50 Soldier unfolds itself. 01020_ G-47 Trooper unfolds itself. 01024_ Acquired Katana. 01033_ Destroyed Imp. Heat Sink. 01038_ G-47 Trooper destroyed. 01041_ Acquired Aluminum Leg. 01046_ Critical hit (Burn: +37). 01050_ Spread Laser destroyed. 01050_ Y-45 Defender Lgt. Treads severed. 01051_ Katana destroyed. 01053_ Acquired 52 matter. 01054_ Aluminum Leg destroyed. 01063_ M-13 Machinist fits Backup Propulsion I on Y-45 Defender. Map ----- +----------------------------------------------------+ | ???????????????# / + #?????????? | | ?????????????### T ##########+####???????? | | ?????????????#"" #???# #???????? | | ?????????"""?#"T ##??# #???????? | | ?????????"""?#"" ![ T#??# #???????? | | ?????????"""?### #???# #???????? | | ?????????????### [ #???# #???????? | | ?????????????# #???# #???????? | | ????????????## ##### #???????? | | ??????? T / % ! + #???????? | | ??????# =! # ##+####################???????? | | ??????# = ?# ## / #??????????????? | | ??????# ??## ### #??????????????? | | ??????# ????# ??# """ """ """ #??????????????? | | ??????# ?????# ??# """ """ """????????????????? | | ???????#??????#a ??# """ """ """????????????????? | | ????????????###% ### #??????????????? | | ????????????# ###+#####+#??????????????????? | | ???????????## #??????????????????? | | ???????? ####??????????????????? | | ???????? T #?????????????????????? | | ???????? =![ #?????????????????????? | | ???????????## %g%= #?????????????????????? | | ????????????# ###m######???????????????????? | | ????????????####+####%[%g! #???????????????????? | | ????????????????????#="*Y@ #???????????????????? | | ????????????????????#""""g #???????????????????? | | ????????????????"""?#"""""Yg #???????????????????? | | ????????????????"""?#""""" #???????????????????? | | ????????????????"""?# """ #???????????????????? | | ????????????????????# #???????????????????? | | ????????????????????# !#???????????????????? | | ????????????????????# #???????????????????? | | ????????????????????##########???????????????????? | | ?????????????????????????????????????????????????? | | ?????????????????????????????????????????????????? | | ?????????????????????????????????????????????????? | | ?????????????????????????????????????????????????? | | ?????????????????????????????????????????????????? | | ?????????????????????????????????????????????????? | | ?????????????????????????????????????????????????? | | ?????????????????????????????????????????????????? | | ?????????????????????????????????????????????????? | | ?????????????????????????????????????????????????? | | ?????????????????????????????????????????????????? | | ?????????????????????????????????????????????????? | | ?????????????????????????????????????????????????? | | ?????????????????????????????????????????????????? | | ?????????????????????????????????????????????????? | | ?????????????????????????????????????????????????? | +----------------------------------------------------+ Best States ------------- Heat Dissipation 31 Energy Generation 10 Energy Capacity 250 Matter Stores 300 Matter Capacity 300 Sight Range 16 Terrain Scan Density 10 Evasion (%) 55 Item Schematics ----------------- None Robot Schematics ------------------ None Fabricated ------------ Nothing Repaired ---------- Nothing Studied --------- None Alien Tech Used ----------------- None Achievements -------------- None Challenges ------------ None Game ------ Seed SeismicCoolingArticulator Manual? 0 Play Time 00:10:37 Cumulative 201.9 hours Start 2026.09.08 @ 21:09:08 End 2026.09.08 @ 21:16:25 Sessions 1 Manual Loads 0 Difficulty Rogue Special Mode None Game No. 393 Rogue 393 Adventurer 0 Explorer 0 Win Type - Total 2 Types 2/0/0/0/0/0/0/0/0/0 Lore% 60 Gallery% 62 Achievement% 48 Wizard Run 0 Options --------- Layout 2 ASCII 0 Keyboard 1 Movement Arrows Keybinds 0 Fullscreen 1 Font 24/Smallcaps Map View 50x44 Zoom Use 0% Tactical HUD 1 Map Filters NONE Filters NONE Steam 1 RUN: 17d1531d-40be-467c-b2d8-354c9f48441d